bitfinex/quotes_SOLUSD_20260124
["timestamp","ask_amount","ask_price","bid_price","bid_amount"]
[1769262859779,82.81671221,127.27,127.23,0.86814444]
[1769262861191,2.11718316,127.26,127.23,0.86814444]
[1769262865511,2.11718316,127.25,127.23,0.86814444]
[1769262871615,80.69952905,127.27,127.23,0.86814444]
[1769262871814,2.11718316,127.25,127.23,0.86814444]
[1769262882842,2.11718316,127.26,127.23,0.86814444]
[1769262910861,2.11655469,127.26,127.23,0.86814444]
[1769262929671,82.81608374,127.27,127.23,0.86814444]
[1769262932700,2.11655469,127.26,127.23,0.86814444]
[1769262934494,82.81608374,127.27,127.23,0.86814444]
[1769262934702,2.11655469,127.26,127.23,0.86814444]
[1769262943317,80.69952905,127.27,127.23,0.86814444]
[1769262943487,2.11655469,127.26,127.23,0.86814444]
[1769262944610,82.81608374,127.27,127.23,0.86814444]
[1769262953292,80.69952905,127.27,127.24,0.86814444]
[1769262955516,80.69952905,127.27,127.25,0.86814444]
[1769262957320,80.69952905,127.27,127.26,0.86814444]
[1769262959123,2.11655469,127.29,127.26,0.86814444]
[1769262963422,82.81608374,127.3,127.27,0.86814444]
[1769262970930,82.81487372,127.3,127.27,0.86814444]
[1769262993361,82.81487372,127.3,127.25,7.85836841]
[1769262993542,82.81487372,127.3,127.26,0.86814444]
[1769262999162,2.11534467,127.29,127.26,0.86814444]
[1769263001043,82.81487372,127.3,127.26,0.86814444]
[1769263002159,82.81487372,127.3,127.27,0.86814444]
[1769263030689,80.69952905,127.3,127.27,0.86814444]
[1769263030890,82.81487372,127.3,127.27,0.86814444]
[1769263032894,82.81497701,127.3,127.27,0.86814444]
[1769263034289,80.69952905,127.3,127.27,0.86814444]
[1769263034480,82.81497701,127.3,127.27,0.86814444]
[1769263034881,80.69952905,127.3,127.27,0.86814444]
[1769263035794,82.81497701,127.3,127.27,0.86814444]
[1769263040920,2.11544796,127.29,127.27,0.86814444]
[1769263051009,82.81497701,127.3,127.27,0.86814444]
[1769263057910,80.69952905,127.3,127.27,0.86814444]
[1769263058097,82.81497701,127.3,127.27,0.86814444]
[1769263060813,2.11544796,127.29,127.27,0.86814444]
[1769263088728,2.11544796,127.3,127.27,0.86814444]
[1769263094939,2.11555826,127.3,127.27,0.86814444]
[1769263125344,0.2,127.31,127.27,0.86814444]
[1769263125550,2.11555826,127.29,127.27,0.86814444]
[1769263128475,2.11555826,127.3,127.27,0.86814444]
[1769263132975,0.2,127.31,127.27,0.86814444]
[1769263132976,2.11555826,127.29,127.27,0.86814444]
[1769263135775,2.11555826,127.28,127.27,0.86814444]
[1769263136865,2.11555826,127.28,127.25,7.85823279]
[1769263136866,2.11555826,127.28,127.26,0.86814444]
[1769263138663,2.11555826,127.27,127.26,0.86814444]
[1769263139576,2.11555826,127.28,127.26,0.86814444]
[1769263144392,2.11555826,127.27,127.21,0.86814444]
[1769263144575,2.11555826,127.23,127.21,0.86814444]
[1769263144772,2.11555826,127.24,127.21,0.86814444]
[1769263145568,23.88742056,127.24,127.21,0.86814444]
[1769263148790,2.11555826,127.22,127.18,0.86814444]
[1769263149089,2.11555826,127.26,127.19,0.86814444]
[1769263149090,2.11555826,127.21,127.19,0.86814444]
[1769263149315,23.88742056,127.22,127.19,0.86814444]
[1769263149489,2.11555826,127.22,127.19,0.86814444]
[1769263149908,2.11555826,127.21,127.19,0.86814444]
[1769263151097,2.11555826,127.26,127.2,0.86814444]
[1769263151292,2.11555826,127.23,127.2,0.86814444]
[1769263152590,2.11555826,127.24,127.2,0.86814444]
[1769263154799,2.11555826,127.24,127.21,0.86814444]
[1769263156899,2.11743777,127.24,127.21,0.86814444]
[1769263158600,2.11743777,127.23,127.21,0.86814444]
[1769263166202,2.11743777,127.25,127.21,0.86814444]
[1769263171394,2.11743777,127.23,127.21,0.86814444]
[1769263173913,25.71625782,127.26,127.19,0.86814444]
[1769263174097,2.11743777,127.2,127.18,7.86268678]
[1769263174897,2.11743777,127.21,127.18,7.86268678]
[1769263175220,2.11743777,127.2,127.18,7.86268678]
[1769263176215,2.11743777,127.2,127.19,0.49319152]
[1769263176516,2.11743777,127.21,127.19,0.49319152]
[1769263179718,0.14492744,127.2,127.15,0.1]
[1769263180019,2.11743777,127.18,127.17,0.49319152]
[1769263180697,2.11743777,127.18,127.16,0.49319152]
[1769263181110,2.11743777,127.17,127.16,0.49319152]
[1769263182410,2.11743777,127.17,127.15,0.1]
[1769263182615,2.11743777,127.14,127.13,0.59319152]
[1769263182811,2.11743777,127.15,127.12,0.1]
[1769263184601,2.60108297,127.15,127.12,0.1]
[1769263184804,2.11743777,127.14,127.12,0.59319152]
[1769263185108,2.60108297,127.15,127.12,0.59319152]
[1769263186619,0.4836452,127.15,127.12,0.59319152]
[1769263186999,0.4836452,127.13,127.12,0.1]
[1769263187200,2.60108297,127.13,127.12,0.1]
[1769263187411,2.60108297,127.13,127.1,0.59319152]
[1769263188220,0.436965,127.12,127.09,0.1]
[1769263188424,2.60108297,127.1,127.05,2.21743777]
[1769263189005,2.60108297,127.1,127.05,0.1]
[1769263189408,2.60108297,127.1,127.05,2.21743777]
[1769263190224,0.4836452,127.1,127.05,2.21743777]
[1769263190521,0.4836452,127.1,127.07,0.49319152]
[1769263191029,0.4836452,127.1,127.08,0.49319152]
[1769263191329,0.4836452,127.11,127.08,0.49319152]
[1769263192527,0.4836452,127.08,127.06,0.1]
[1769263192707,2.60108297,127.07,127.05,0.1]
[1769263192903,0.4836452,127.07,127.05,0.1]
[1769263193203,0.4836452,127.08,127.05,2.71062929]
[1769263193408,0.4836452,127.08,127.05,0.59319152]
[1769263195812,0.4836452,127.08,127.05,0.1]
[1769263196012,0.4836452,127.07,127.05,0.1]
[1769263196210,0.4836452,127.06,127.04,0.1]
[1769263196422,0.4836452,127.05,127.04,0.1]
[1769263196731,0.4836452,127.05,127.01,0.59319152]
[1769263196732,0.4836452,127.04,127.01,0.59319152]
[1769263196913,5.82773376,127.05,127.02,0.49319152]
[1769263197108,7.94517153,127.05,127.02,0.49319152]
[1769263197303,0.4836452,127.05,127.01,0.1]
[1769263197631,2.60108297,127.02,127.01,0.1]
[1769263197814,2.11743777,127.01,127.0,0.1]
[1769263198128,2.11743777,127.01,126.96,2.61062929]
[1769263198129,0.32885626,127.0,126.96,2.61062929]
[1769263198328,0.32885626,127.0,126.96,0.49319152]
[1769263198829,2.44629403,127.0,126.96,0.49319152]
[1769263199237,2.11743777,126.99,126.96,0.49319152]
[1769263199536,2.44629403,127.0,126.96,0.49319152]
[1769263200231,0.32861375,126.98,126.95,14.23641403]
[1769263200416,2.44605152,126.98,126.95,14.72960555]
[1769263200612,2.44593236,127.01,126.96,0.49319152]
[1769263201113,2.11743777,127.01,126.97,0.49319152]
[1769263201326,0.32849459,127.02,126.98,0.49319152]
[1769263201527,2.44593236,127.02,126.98,0.49319152]
[1769263202616,2.11743777,127.0,126.96,0.49163428]
[1769263202818,2.11743777,126.99,126.96,0.49163428]
[1769263203224,2.445583,127.0,126.96,0.49163428]
[1769263204512,0.32791896,127.02,126.97,0.49163428]
[1769263204822,2.44535673,127.02,126.98,0.49163428]
[1769263205016,0.32791896,127.02,126.98,0.49163428]
[1769263205213,0.32791896,127.02,126.99,0.49163428]
[1769263205710,2.44535673,127.02,126.99,0.49163428]
[1769263206326,0.32791896,127.02,126.99,0.49163428]
[1769263207937,2.44502698,127.03,126.99,0.49163428]
[1769263209015,0.32758921,127.03,126.99,0.49163428]
[1769263210023,2.44502698,127.03,126.99,0.49163428]
[1769263210538,0.32758921,127.03,126.99,0.49163428]
[1769263210730,2.44502698,127.03,126.99,0.49163428]
[1769263213120,5.67105159,127.04,126.99,0.49163428]
[1769263213342,7.78848936,127.04,126.99,0.49163428]
[1769263213842,7.78848936,127.04,127.0,0.4968426]
[1769263214036,2.11743777,127.04,127.0,0.4968426]
[1769263214542,7.78838915,127.05,127.01,0.4968426]
[1769263214844,2.44430059,127.05,127.01,0.4968426]
[1769263215030,0.32686282,127.05,127.02,0.4968426]
[1769263216326,0.32656905,127.02,126.96,0.4968426]
[1769263216525,0.32656905,127.02,126.95,14.23641403]
[1769263216526,0.32656905,127.01,126.95,13.90984163]
[1769263216741,2.11743777,126.96,126.92,0.5041669]
[1769263217051,2.12719289,126.96,126.92,0.5041669]
[1769263217347,2.12719289,126.98,126.95,0.5041669]
[1769263217544,2.12719289,126.99,126.95,0.5041669]
[1769263217934,21.09446901,127.02,126.95,0.5041669]
[1769263218338,2.12719289,127.0,126.96,0.5041669]
[1769263219046,2.12719289,127.01,126.96,0.5041669]
[1769263219439,2.12719289,127.02,126.97,0.5041669]
[1769263219830,2.12719289,127.02,126.98,0.5041669]
[1769263219831,5.34408856,127.02,126.98,0.5041669]
[1769263220144,5.34408856,127.02,126.99,0.5041669]
[1769263220536,7.87109083,127.05,126.99,0.5041669]
[1769263220739,2.12719289,127.05,127.01,0.5041669]
[1769263221256,7.47128145,127.05,127.01,0.5041669]
[1769263221630,5.34408856,127.05,127.01,0.5041669]
[1769263221941,7.47128145,127.05,127.01,0.5041669]
[1769263222140,7.47128145,127.05,126.93,5.36086188]
[1769263222141,5.34408856,127.04,126.93,5.36086188]
[1769263222342,2.12719289,127.01,126.97,0.5041669]
[1769263222843,5.34408856,127.03,126.98,0.5041669]
[1769263223034,2.12719289,127.02,126.98,0.5041669]
[1769263223635,2.12719289,127.01,126.98,0.5041669]
[1769263225050,2.12719289,127.01,126.96,0.5041669]
[1769263225247,2.12719289,127.0,126.96,0.5041669]
[1769263226352,2.12719289,127.01,126.96,0.5041669]
[1769263228362,2.12719289,127.0,126.96,0.5041669]
[1769263228665,2.12719289,126.99,126.95,0.5041669]
[1769263228965,2.12719289,126.98,126.95,0.5041669]
[1769263229861,2.12719289,126.99,126.95,0.5041669]
[1769263230358,2.12719289,126.99,126.93,7.87821614]
[1769263230359,2.12719289,126.97,126.93,0.5041669]
[1769263230548,2.12719289,126.95,126.91,0.45]
[1769263230760,2.12719289,126.92,126.88,0.5041669]
[1769263230934,2.12719289,126.92,126.87,0.5041669]
[1769263231442,2.12719289,126.92,126.87,2.63135979]
[1769263231641,2.12719289,126.91,126.88,0.5041669]
[1769263232151,2.12719289,126.93,126.89,0.5041669]
[1769263232752,2.12719289,126.92,126.89,0.5041669]
[1769263232954,2.12719289,126.91,126.87,0.5041669]
[1769263233257,2.12719289,126.92,126.87,2.63135979]
[1769263233558,2.12719289,126.94,126.9,0.5041669]
[1769263233746,7.47128145,126.95,126.91,0.5041669]
[1769263234558,5.34408856,126.95,126.91,0.5041669]
[1769263234740,5.34408856,126.95,126.92,0.5041669]
[1769263234936,2.12719289,126.97,126.92,0.5041669]
[1769263235358,7.47128145,126.96,126.92,0.5041669]
[1769263235751,2.12719289,126.97,126.92,2.63135979]
[1769263235936,5.34408856,126.96,126.93,0.5041669]
[1769263236562,2.12719289,126.99,126.94,0.5041669]
[1769263236744,2.12719289,126.99,126.95,0.5041669]
[1769263237054,7.87482338,127.01,126.96,5.9274621]
[1769263237356,7.87238248,127.03,126.97,0.5041669]
[1769263237559,5.4232952,127.01,126.97,0.5041669]
[1769263237764,5.34408856,127.01,126.97,5.9274621]
[1769263237955,5.4232952,127.02,126.97,5.9274621]
[1769263238133,5.34408856,127.01,126.97,5.9274621]
[1769263238337,5.4232952,127.01,126.97,5.9274621]
[1769263238663,5.34408856,127.0,126.97,0.5041669]
[1769263239157,5.34408856,126.97,126.9,5.9274621]
[1769263239336,5.4232952,126.95,126.9,0.5041669]
[1769263239532,5.34408856,126.97,126.91,0.5041669]
[1769263239533,5.4232952,126.96,126.91,0.5041669]
[1769263239738,5.4232952,126.96,126.91,5.9274621]
[1769263239937,5.4232952,126.96,126.91,0.5041669]
[1769263240863,5.4232952,126.96,126.92,0.5041669]
[1769263241078,10.76738376,126.97,126.93,0.5041669]
[1769263241241,5.4232952,126.96,126.93,0.5041669]
[1769263242776,39.35207775,127.06,126.9,0.5041669]
[1769263242777,13.21994646,126.98,126.9,0.5041669]
[1769263242947,5.4232952,126.94,126.9,0.5041669]
[1769263243145,5.4232952,126.93,126.9,0.5041669]
[1769263243652,5.4232952,126.94,126.9,0.5041669]
[1769263247268,7.87605916,126.97,126.9,0.5041669]
[1769263247462,5.4232952,126.95,126.9,0.5041669]
[1769263247664,5.4232952,126.94,126.9,0.5041669]
[1769263247862,5.34408856,126.98,126.9,0.5041669]
[1769263248048,5.4232952,126.95,126.9,0.5041669]
[1769263248367,5.4232952,126.95,126.91,0.5041669]
[1769263248669,10.76738376,126.96,126.92,0.5041669]
[1769263249075,5.34408856,126.96,126.92,0.5041669]
[1769263249455,10.76738376,126.96,126.92,0.5041669]
[1769263250262,5.34408856,126.96,126.92,0.5041669]
[1769263250460,10.76738376,126.96,126.92,0.5041669]
[1769263250988,5.4232952,126.95,126.92,0.5041669]
[1769263251668,5.4232952,126.94,126.92,0.5041669]
[1769263251865,5.4232952,126.93,126.88,0.5041669]
[1769263252071,5.4232952,126.93,126.89,0.5041669]
[1769263253862,5.4232952,126.94,126.9,0.5041669]
[1769263254175,5.4232952,126.95,126.91,0.5041669]
[1769263254779,5.4232952,126.94,126.91,0.5041669]
[1769263254974,5.4232952,126.95,126.91,0.5041669]
[1769263256575,5.4232952,126.94,126.91,0.5041669]
[1769263256763,5.4232952,126.93,126.91,0.5041669]
[1769263257780,5.4232952,126.92,126.88,0.5041669]
[1769263258656,25.03532989,126.96,126.88,0.5041669]
[1769263258857,5.4232952,126.92,126.88,0.5041669]
[1769263259081,5.4232952,126.91,126.88,0.5041669]
[1769263259791,5.4232952,126.91,126.86,0.6041669]
[1769263259969,5.4232952,126.91,126.87,0.5041669]
[1769263260170,7.87773751,126.94,126.87,0.5041669]
[1769263260362,5.4232952,126.91,126.87,0.5041669]
[1769263260563,7.87773751,126.94,126.87,0.5041669]
[1769263260782,5.4232952,126.91,126.87,0.5041669]
[1769263260982,5.4232952,126.92,126.87,0.5041669]
[1769263261168,7.87773751,126.94,126.87,0.5041669]
[1769263261169,5.34408856,126.93,126.87,0.5041669]
[1769263261378,5.4232952,126.9,126.87,0.5041669]
[1769263261581,5.34408856,126.93,126.87,0.5041669]
[1769263261965,5.4232952,126.88,126.86,0.1]
[1769263262184,5.4232952,126.87,126.86,0.1]
[1769263262400,7.880489,126.9,126.86,0.1]
[1769263262562,5.4232952,126.87,126.86,0.1]
[1769263262885,5.4232952,126.88,126.86,0.1]
[1769263263268,10.76738376,126.91,126.86,0.6041669]
[1769263263471,27.5633958,126.98,126.88,0.5041669]
[1769263263676,5.4232952,126.94,126.9,0.5041669]
[1769263263876,25.10905592,127.0,126.91,0.5041669]
[1769263264086,5.4232952,126.96,126.92,0.5041669]
[1769263264286,19.6823629,127.02,126.93,0.5041669]
[1769263264585,5.4232952,126.98,126.94,0.5041669]
[1769263265264,5.4232952,126.99,126.94,0.5041669]
[1769263265468,5.34408856,126.98,126.94,0.5041669]
[1769263265879,5.4232952,126.99,126.94,0.5041669]
[1769263266088,5.34408856,126.98,126.94,5.9274621]
[1769263266294,5.34408856,126.98,126.95,0.5041669]
[1769263271008,10.76738376,126.98,126.95,0.5041669]
[1769263271920,5.34408856,126.98,126.95,0.5041669]
[1769263272198,7.87362621,127.01,126.95,0.5041669]
[1769263272391,5.4232952,126.98,126.95,0.5041669]
[1769263272792,5.4232952,126.99,126.95,0.5041669]
[1769263273387,10.76738376,127.0,126.95,0.5041669]
[1769263273590,5.4232952,126.99,126.95,0.5041669]
[1769263274110,10.76738376,127.0,126.95,0.5041669]
[1769263274283,5.4232952,126.99,126.95,0.5041669]
[1769263274998,5.4232952,126.98,126.95,0.5041669]
[1769263275706,13.21816403,127.0,126.95,0.5041669]
[1769263275908,5.4232952,126.98,126.95,0.5041669]
[1769263276931,5.42409672,126.98,126.95,0.5041669]
[1769263277215,13.21816403,127.0,126.95,0.5041669]
[1769263277422,5.42409672,126.98,126.95,0.5041669]
[1769263278809,5.42409672,126.98,126.94,0.5041669]
[1769263279005,5.42409672,126.97,126.94,0.5041669]
[1769263279410,5.42409672,126.98,126.94,0.5041669]
[1769263281092,10.76818528,126.99,126.94,0.5041669]
[1769263283213,10.76818528,126.99,126.95,0.5041669]
[1769263284702,5.42409672,126.98,126.95,0.5041669]
[1769263285514,5.42409672,126.97,126.94,0.5041669]
[1769263287412,5.42409672,126.97,126.88,0.5041669]
[1769263287618,5.42409672,126.94,126.91,0.5041669]
[1769263289790,5.42409672,126.95,126.91,0.5041669]
[1769263290519,7.87525594,126.98,126.92,0.5041669]
[1769263290721,5.42409672,126.96,126.92,0.5041669]
[1769263291944,5.42409672,126.95,126.92,0.5041669]
[1769263292498,25.03144097,126.99,126.92,0.5041669]
[1769263292499,5.42409672,126.96,126.92,0.5041669]
[1769263294204,5.42409672,126.97,126.93,0.5041669]
[1769263294602,5.34408856,126.99,126.93,0.5041669]
[1769263294803,5.42409672,126.97,126.93,0.5041669]
[1769263295401,10.76818528,126.98,126.94,0.5041669]
[1769263295804,5.42409672,126.99,126.95,0.5041669]
[1769263296042,10.76818528,126.99,126.95,0.5041669]
[1769263296733,5.34408856,126.99,126.95,0.5041669]
[1769263296948,10.76818528,126.99,126.95,0.5041669]
[1769263298038,5.42409672,126.99,126.95,0.5041669]
[1769263298952,5.34408856,127.0,126.95,0.5041669]
[1769263299250,5.42409672,127.01,126.97,0.5041669]
[1769263300623,5.42409672,127.02,126.97,0.5041669]
[1769263300933,2.12506431,127.02,126.97,0.5041669]
[1769263301131,2.12506431,127.02,126.98,0.5041669]
[1769263302937,2.12506431,127.01,126.98,0.5041669]
[1769263303553,7.46915287,127.02,126.98,0.5041669]
[1769263303930,5.34408856,127.03,126.99,0.5041669]
[1769263304240,2.12506431,127.04,126.99,0.5041669]
[1769263304564,2.12506431,127.05,127.01,0.5041669]
[1769263304726,2.12506431,127.06,127.01,0.5041669]
[1769263305449,2.12506431,127.06,127.01,2.62923121]
[1769263305748,2.12506431,127.06,127.02,0.5041669]
[1769263306150,2.12506431,127.07,127.02,0.5041669]
[1769263306331,2.12506431,127.05,127.02,0.5041669]
[1769263306722,5.34408856,127.07,127.02,0.5041669]
[1769263306922,2.12506431,127.05,127.02,0.5041669]
[1769263307840,2.12506431,127.06,127.02,0.5041669]
[1769263309740,2.12506431,127.05,127.01,0.5041669]
[1769263310527,7.46915287,127.06,127.01,0.5041669]
[1769263311538,2.12506431,127.05,127.01,0.5041669]
[1769263313956,7.46915287,127.06,127.01,0.5041669]
[1769263315134,2.12506431,127.07,127.02,0.5041669]
[1769263315955,7.46915287,127.08,127.03,0.5041669]
[1769263316277,2.12506431,127.07,127.03,0.5041669]
[1769263316838,2.12506431,127.06,127.03,0.5041669]
[1769263321157,2.12506431,127.07,127.03,0.5041669]
[1769263322337,2.12506431,127.04,127.01,0.5041669]
[1769263323451,2.12506431,127.02,126.98,0.5041669]
[1769263324450,2.12506431,127.0,126.97,0.5041669]
[1769263324654,2.12506431,127.0,126.95,0.5041669]
[1769263325039,2.12506431,126.99,126.95,0.5041669]
[1769263326468,2.12506431,126.98,126.95,0.5041669]
[1769263327766,2.12506431,126.99,126.95,0.5041669]
[1769263328071,2.12506431,126.98,126.95,0.5041669]
[1769263331176,2.12506431,126.99,126.95,0.5041669]
[1769263332381,2.12506431,126.98,126.95,0.5041669]
[1769263335175,2.12506431,126.96,126.94,0.5041669]
[1769263335757,2.12506431,126.97,126.94,0.5041669]
[1769263335952,2.12506431,126.96,126.94,0.5041669]
[1769263337472,2.12506431,126.97,126.94,0.5041669]
[1769263337779,2.12506431,126.98,126.94,0.5041669]
[1769263338885,2.12629298,126.98,126.94,0.5041669]
[1769263340760,2.12629298,126.99,126.95,0.5041669]
[1769263341583,5.34408856,127.0,126.95,0.5041669]
[1769263341771,7.47038154,127.0,126.96,0.5041669]
[1769263342172,2.12629298,126.99,126.96,0.5041669]
[1769263344188,5.34408856,127.0,126.96,0.5041669]
[1769263344503,2.12629298,126.99,126.96,0.5041669]
[1769263344664,2.12629298,127.0,126.96,0.5041669]
[1769263346487,9.99745878,127.05,126.97,0.5041669]
[1769263346788,2.12629298,127.02,126.98,0.5041669]
[1769263347582,2.12629298,127.01,126.98,0.5041669]
[1769263350994,2.12629298,127.0,126.95,0.5041669]
[1769263351177,2.12629298,126.99,126.95,0.5041669]
[1769263351372,2.12629298,127.0,126.95,0.5041669]
[1769263353369,2.12629298,127.0,126.95,2.63045988]
[1769263353575,2.12629298,127.0,126.96,0.5041669]
[1769263354776,2.12629298,126.99,126.96,0.5041669]
[1769263355494,2.12629298,126.98,126.96,0.5041669]
[1769263359297,2.12629298,126.99,126.96,0.5041669]
[1769263359701,5.34408856,127.01,126.96,0.5041669]
[1769263359872,2.12629298,126.99,126.96,0.5041669]
[1769263360995,2.12629298,127.0,126.96,0.5041669]
[1769263363888,5.34408856,127.01,126.97,0.5041669]
[1769263364094,2.12629298,127.02,126.97,0.5041669]
[1769263364401,2.12629298,127.01,126.97,0.5041669]
[1769263365610,13.21672898,127.03,126.97,0.5041669]
[1769263365897,2.12629298,127.01,126.97,0.5041669]
[1769263370878,2.12629298,127.0,126.97,0.5041669]
[1769263372720,2.12629298,127.0,126.95,2.12629298]
[1769263373323,2.58772414,127.0,126.95,2.12629298]
[1769263373630,2.58772414,127.0,126.93,7.87806978]
[1769263373631,2.58772414,126.98,126.93,7.87806978]
[1769263373793,2.58772414,126.98,126.93,10.00436276]
[1769263374804,2.58772414,126.98,126.94,0.49961291]
[1769263380010,0.46143116,126.98,126.94,0.49961291]
[1769263380721,2.58772414,126.98,126.94,0.49961291]
[1769263383414,2.12629298,126.98,126.94,0.49961291]
[1769263383612,80.69952905,126.99,126.97,0.46507321]
[1769263383817,2.12629298,127.01,126.97,0.46507321]
[1769263384191,2.58255675,127.01,126.97,0.46507321]
[1769263384392,0.45626377,127.0,126.97,0.46507321]
[1769263386019,2.58255675,127.01,126.97,0.46507321]
[1769263386919,0.45626377,127.02,126.98,0.46507321]
[1769263391527,2.58255675,127.02,126.98,0.46507321]
[1769263394416,0.49221015,127.01,126.98,0.46507321]
[1769263394817,2.61850313,127.02,126.98,0.46507321]
[1769263397448,0.49221015,127.02,126.98,0.46507321]
[1769263397610,0.49221015,127.02,126.99,0.46412414]
[1769263398711,2.61850313,127.03,126.99,0.46412414]
[1769263398912,2.61678055,127.03,126.99,0.46412414]
[1769263399117,0.49221015,127.03,127.0,0.46412414]
[1769263400440,2.61678055,127.03,127.0,0.46412414]
[1769263401041,0.49221015,127.03,127.0,0.46412414]
[1769263401822,83.3163096,127.04,127.0,0.46412414]
[1769263402119,81.1917392,127.04,127.0,0.46412414]
[1769263403014,80.69952905,127.04,127.01,0.46412414]
[1769263403214,0.49221015,127.05,127.01,0.46412414]
[1769263403414,0.49221015,127.05,127.02,0.46412414]
[1769263403621,0.49221015,127.06,127.03,0.46412414]
[1769263406336,83.3163096,127.07,127.03,0.46412414]
[1769263407045,82.82409945,127.07,127.03,0.46412414]
[1769263407217,0.49221015,127.06,127.03,0.46412414]
[1769263407839,2.61678055,127.06,127.03,0.46412414]
[1769263408341,0.49221015,127.05,127.01,0.46412414]
[1769263409538,2.61678055,127.05,127.01,0.46412414]
[1769263409713,0.49221015,127.04,127.01,0.46412414]
[1769263410116,2.61678055,127.05,127.01,0.46412414]
[1769263411642,0.49221015,127.04,127.01,0.46412414]
[1769263412752,0.49221015,127.04,126.99,0.45751117]
[1769263413052,0.48715789,127.03,126.99,0.45751117]
[1769263414229,2.61172829,127.03,126.99,0.45751117]
[1769263414457,2.61172829,127.01,126.98,0.45751117]
[1769263416145,2.1245704,127.0,126.98,0.45751117]
[1769263416447,2.61172829,127.01,126.98,0.45751117]
[1769263420150,0.48715789,127.01,126.98,0.45751117]
[1769263420330,2.61172829,127.01,126.98,0.45751117]
[1769263423468,0.48715789,127.01,126.98,0.45751117]
[1769263425555,2.61172829,127.01,126.98,0.45751117]
[1769263426646,0.48715789,127.0,126.98,0.45751117]
[1769263427171,2.61172829,127.01,126.98,0.45751117]
[1769263427842,0.48715789,127.01,126.98,0.45751117]
[1769263429772,2.61172829,127.01,126.98,0.45751117]
[1769263429958,0.48715789,127.01,126.98,0.45751117]
[1769263430273,2.61172829,127.02,126.98,0.45751117]
[1769263430964,0.48715789,127.01,126.98,0.45751117]
[1769263432070,80.69952905,127.03,126.98,2.1245704]
[1769263432269,80.69952905,127.03,126.99,0.45751117]
[1769263432456,81.18668694,127.03,126.99,0.45751117]
[1769263432644,2.61172829,127.02,126.99,0.45751117]
[1769263433561,0.48715789,127.01,126.98,0.45751117]
[1769263440676,2.61172829,127.01,126.98,0.45751117]
[1769263441276,0.48715789,127.01,126.98,0.45751117]
[1769263441480,2.61172829,127.01,126.98,0.45751117]
[1769263441778,2.1245704,127.02,126.98,0.45751117]
[1769263442358,0.48715789,127.02,126.98,0.45751117]
[1769263443182,2.62764515,127.01,126.98,0.45751117]
[1769263443684,0.50307475,127.01,126.98,0.45751117]
[1769263443983,2.62764515,127.02,126.98,0.45751117]
[1769263447100,2.62764515,127.01,126.98,0.45751117]
[1769263448385,0.50307475,127.01,126.98,0.45751117]
[1769263449060,2.62764515,127.01,126.98,0.45751117]
[1769263452168,0.50307475,127.01,126.98,0.45751117]
[1769263453592,2.62764515,127.01,126.98,0.45751117]
[1769263459990,0.48309322,126.99,126.96,8.37018047]
[1769263460296,2.60766362,127.0,126.97,0.49396037]
[1769263460893,2.60872787,127.0,126.97,0.49396037]
[1769263461092,0.48309322,127.0,126.97,0.49396037]
[1769263461590,2.60872787,127.01,126.97,0.49396037]
[1769263469705,0.48309322,127.0,126.97,0.49396037]
[1769263470099,2.60872787,127.0,126.97,0.49396037]
[1769263470707,2.12563465,127.0,126.97,0.49396037]
[1769263471084,2.60872787,127.01,126.97,0.49396037]
[1769263473110,0.47441791,127.0,126.97,0.49396037]
[1769263474613,2.60005256,127.0,126.97,0.49396037]
[1769263475713,0.47441791,127.0,126.97,0.49396037]
[1769263480908,2.12563465,127.01,126.97,0.49396037]
[1769263481114,2.60005256,127.02,126.97,0.49396037]
[1769263481315,0.47441791,127.01,126.97,0.49396037]
[1769263487145,2.60005256,127.01,126.97,0.49396037]
[1769263491834,85.28608978,127.03,126.99,0.51129443]
[1769263492021,0.47441791,127.02,126.99,0.51129443]
[1769263493028,2.60005256,127.02,126.99,0.51129443]
[1769263494333,80.69952905,127.03,126.99,0.51129443]
[1769263494535,6.71266509,127.05,127.01,0.51129443]
[1769263494834,0.47441791,127.04,127.01,0.51129443]
[1769263498731,80.69952905,127.06,127.03,2.12563465]
[1769263499036,80.69952905,127.06,127.04,0.51129443]
[1769263499330,81.17394696,127.06,127.04,0.51129443]
[1769263499524,0.47441791,127.06,127.04,0.51129443]
[1769263500047,2.60005256,127.06,127.04,0.51129443]
[1769263500250,0.47441791,127.06,127.04,0.51129443]
[1769263501148,0.47441791,127.08,127.03,0.51129443]
[1769263501315,0.47441791,127.06,127.03,0.51129443]
[1769263503653,2.60005256,127.06,127.03,0.51129443]
[1769263504137,0.47255169,127.03,126.98,8.38505395]
[1769263504338,0.47255169,127.02,126.99,0.51000899]
[1769263504535,0.47255169,127.01,126.98,0.51000899]
[1769263506117,2.59818634,126.99,126.95,0.51000899]
[1769263506340,0.47255169,126.99,126.95,0.51000899]
[1769263506538,2.59818634,126.99,126.95,0.51000899]
[1769263507634,5.34408856,127.02,126.96,0.51000899]
[1769263507816,2.12563465,127.0,126.97,0.51000899]
[1769263508222,0.47255169,127.0,126.97,0.51000899]
[1769263509029,0.47255169,127.01,126.98,0.51000899]
[1769263509545,2.59818634,127.01,126.98,0.51000899]
[1769263510839,2.12563465,126.99,126.96,0.47847925]
[1769263512429,2.59535917,127.0,126.96,0.47847925]